bitfinex/quotes_SOLUSD_20240708
["timestamp","ask_amount","ask_price","bid_price","bid_amount"]
[1720446956973,6.76850644,140.49,140.45,100.51]
[1720446958476,20.0,140.48,140.45,100.51]
[1720446958659,20.0,140.48,140.45,0.51]
[1720446959176,20.0,140.48,140.43,100.0]
[1720446959389,20.0,140.48,140.4,100.0]
[1720446959751,20.0,140.48,140.42,100.0]
[1720446960271,20.0,140.48,140.44,100.0]
[1720446960479,20.0,140.48,140.45,0.34]
[1720446960782,20.0,140.48,140.43,0.17]
[1720446960783,20.0,140.48,140.44,100.17]
[1720446960978,20.0,140.48,140.46,0.17]
[1720446961156,20.0,140.48,140.46,100.17]
[1720446961356,0.2,140.49,140.47,0.34]
[1720446961565,0.2,140.49,140.48,0.17]
[1720446962353,38.82,140.49,140.39,6.0222]
[1720446962676,20.0,140.48,140.39,6.0222]
[1720446962848,20.0,140.48,140.36,100.0]
[1720446963047,45.1032,140.45,140.34,100.0]
[1720446963263,45.1032,140.45,140.32,100.0]
[1720446963264,7.1224,140.41,140.32,100.0]
[1720446963581,20.0,140.4,140.34,100.0]
[1720446963990,20.0,140.44,140.36,100.0]
[1720446964463,20.0,140.44,140.38,100.0]
[1720446964662,20.0,140.44,140.34,100.0]
[1720446964867,7.1215,140.42,140.32,100.0]
[1720446965084,7.1224,140.41,140.32,100.0]
[1720446965275,20.0,140.4,140.34,100.0]
[1720446965469,20.0,140.4,140.35,1.01508845]
[1720446965674,7.1239,140.38,140.29,100.0]
[1720446965877,20.0,140.37,140.29,100.0]
[1720446966264,7.1251,140.35,140.27,6.0946]
[1720446966482,20.0,140.34,140.26,15.3188]
[1720446966689,20.0,140.34,140.28,100.0]
[1720446967064,22.1068,140.41,140.34,100.0]
[1720446967871,6.83706622,140.44,140.37,0.17]
[1720446968176,6.2369,140.45,140.37,0.51]
[1720446968481,16.2347,140.46,140.39,0.17]
[1720446968671,6.75473692,140.47,140.41,0.17]
[1720446968874,13.5553,140.49,140.41,0.51]
[1720446968875,7.1186,140.48,140.41,0.51]
[1720446969475,7.3179,140.49,140.41,0.51]
[1720446969673,7.1184,140.48,140.41,0.51]
[1720446970083,6.91248997,140.49,140.41,0.51]
[1720446970287,6.91248997,140.49,140.42,100.0]
[1720446970469,6.91248997,140.49,140.45,0.17]
[1720446970665,6.91248997,140.49,140.45,0.51]
[1720446972196,20.0,140.48,140.45,0.51]
[1720446972401,20.0,140.48,140.45,0.34]
[1720446972565,20.0,140.48,140.45,0.17]
[1720446972987,20.0,140.48,140.45,0.34]
[1720446973178,20.0,140.48,140.45,0.17]
[1720446973385,20.0,140.48,140.45,100.34]
[1720446973576,20.0,140.48,140.46,0.34]
[1720446973780,20.0,140.48,140.47,0.17]
[1720446974290,20.0,140.48,140.4,6.1909]
[1720446974291,20.0,140.48,140.43,0.17]
[1720446974490,20.0,140.48,140.44,0.17]
[1720446974681,20.0,140.48,140.43,0.34]
[1720446974890,20.0,140.48,140.44,0.17]
[1720446975866,20.0,140.48,140.44,100.17]
[1720446976072,20.0,140.48,140.45,0.34]
[1720446976273,0.2,140.49,140.46,0.17]
[1720446976490,0.2,140.49,140.45,0.17]
[1720446976702,20.2,140.49,140.45,0.17]
[1720446977703,20.2,140.49,140.46,0.17]
[1720446977880,20.2,140.49,140.46,0.34]
[1720446978075,0.2,140.49,140.47,0.17]
[1720446978589,0.2,140.49,140.47,0.34]
[1720446980178,0.2,140.49,140.47,0.17]
[1720446980394,0.2,140.49,140.41,121.48]
[1720446980572,20.2,140.49,140.46,100.0]
[1720446980771,20.0,140.48,140.46,100.0]
[1720446980990,0.2,140.49,140.46,100.0]
[1720446981369,0.2,140.49,140.47,0.17]
[1720446981771,0.2,140.49,140.48,100.17]
[1720446982004,0.2,140.49,140.48,100.51]
[1720446983097,0.2,140.49,140.48,121.99]
[1720446983486,0.2,140.49,140.48,123.41289365]
[1720446983697,0.8794961,140.51,140.5,121.48]
[1720446983990,0.8794961,140.51,140.5,121.99]
[1720446986389,0.8794961,140.51,140.5,0.51]
[1720446986597,0.8794961,140.51,140.48,100.0]
[1720446986790,0.8794961,140.51,140.5,100.0]
[1720446986973,0.8794961,140.51,140.48,100.0]
[1720446987382,0.8794961,140.51,140.5,100.0]
[1720446987581,0.8794961,140.51,140.5,121.48]
[1720446987802,0.8794961,140.51,140.5,121.82]
[1720446987999,0.8794961,140.51,140.5,121.99]
[1720446989915,0.8794961,140.51,140.5,229.1074]
[1720446990500,0.2,140.59,140.57,0.17]
[1720446990693,0.2,140.59,140.57,0.51]
[1720446991087,0.2,140.59,140.57,100.0]
[1720446991696,0.2,140.59,140.57,121.48]
[1720446991898,0.2,140.59,140.57,100.0]
[1720446992916,0.2,140.59,140.57,121.48]
[1720446993103,0.2,140.59,140.58,0.51]
[1720446993331,0.8794961,140.65,140.64,0.17]
[1720446994922,0.8794961,140.65,140.63,100.0]
[1720446995128,0.8794961,140.65,140.58,100.34]
[1720446995312,0.8794961,140.65,140.61,0.17]
[1720446995504,0.8794961,140.65,140.63,0.17]
[1720446995825,0.8794961,140.65,140.63,0.51]
[1720446996138,0.8794961,140.65,140.64,100.17]
[1720446996319,0.8794961,140.65,140.64,100.51]
[1720446997838,0.8794961,140.65,140.64,0.51]
[1720446998133,0.8794961,140.65,140.64,0.17]
[1720446998306,0.8794961,140.65,140.63,0.17]
[1720446998830,0.8794961,140.65,140.64,100.0]
[1720446999009,0.8794961,140.65,140.64,100.17]
[1720446999507,0.8794961,140.65,140.64,100.51]
[1720447000630,0.8794961,140.65,140.64,121.99]
[1720447000929,0.8794961,140.65,140.64,100.51]
[1720447001135,0.8794961,140.65,140.64,121.99]
[1720447003527,0.8794961,140.65,140.64,123.40841417]
[1720447007414,0.6994961,140.65,140.64,223.40841417]
[1720447008025,0.6994961,140.65,140.64,123.40841417]
[1720447008229,0.6994961,140.65,140.64,123.06841417]
[1720447008955,0.6994961,140.65,140.64,22.89841417]
[1720447009242,0.6994961,140.65,140.64,122.89841417]
[1720447009543,0.6994961,140.65,140.64,123.23841417]
[1720447010106,0.6994961,140.65,140.64,121.82]
[1720447011019,0.6994961,140.65,140.64,100.0]
[1720447011951,0.6994961,140.65,140.64,121.48]
[1720447012132,0.6994961,140.65,140.64,221.48]
[1720447012447,0.6994961,140.65,140.64,221.99]
[1720447012738,0.6994961,140.65,140.64,121.99]
[1720447014127,0.6994961,140.65,140.64,100.17]
[1720447014518,0.6994961,140.65,140.64,121.65]
[1720447014736,0.6994961,140.65,140.64,21.65]
[1720447014918,0.6994961,140.65,140.64,121.65]
[1720447015436,0.6994961,140.65,140.64,221.99]
[1720447015748,0.6994961,140.65,140.64,121.99]
[1720447016847,0.6994961,140.65,140.64,100.0]
[1720447018325,0.6994961,140.65,140.64,100.34]
[1720447018532,0.6994961,140.65,140.64,100.51]
[1720447018738,0.6994961,140.65,140.64,121.99]
[1720447020057,0.6994961,140.65,140.64,123.40728961]
[1720447021318,0.6994961,140.65,140.64,230.51758961]
[1720447021545,0.6994961,140.65,140.64,248.29338961]
[1720447021737,0.6994961,140.65,140.64,123.40728961]
[1720447022045,0.6994961,140.65,140.64,100.0]
[1720447023346,0.6994961,140.65,140.64,100.34]
[1720447024050,0.6994961,140.65,140.64,121.82]
[1720447024421,0.6994961,140.65,140.64,121.99]
[1720447024842,0.6994961,140.65,140.64,100.17]
[1720447025936,0.6994961,140.65,140.64,121.65]
[1720447026228,0.6994961,140.65,140.64,100.0]
[1720447027153,0.6994961,140.65,140.62,100.0]
[1720447027458,0.6994961,140.65,140.6,100.0]
[1720447028341,0.6994961,140.65,140.62,100.0]
[1720447028542,20.6994961,140.65,140.62,121.48]
[1720447028730,20.6994961,140.65,140.64,100.0]
[1720447028931,0.6994961,140.65,140.64,121.48]
[1720447029446,0.6994961,140.65,140.64,121.99]
[1720447030349,0.6994961,140.65,140.64,23.41143224]
[1720447030548,0.6994961,140.65,140.64,230.52173224]
[1720447030781,0.6994961,140.65,140.64,229.1003]
[1720447031052,0.2,140.69,140.68,221.65]
[1720447031259,0.2,140.69,140.68,228.7583]
[1720447032242,1.0794961,140.79,140.77,100.0]
[1720447032763,1.0794961,140.79,140.78,0.17]
[1720447033439,1.0794961,140.79,140.75,100.0]
[1720447033748,1.0794961,140.79,140.76,0.51]
[1720447033953,1.0794961,140.79,140.72,100.0]
[1720447034159,1.0794961,140.79,140.73,0.17]
[1720447034529,8.1824961,140.79,140.69,100.0]
[1720447034759,20.0,140.78,140.69,100.0]
[1720447034945,21.0794961,140.79,140.71,100.0]
[1720447035251,21.0794961,140.79,140.72,1.41171486]
[1720447035840,21.0794961,140.79,140.73,0.17]
[1720447036042,21.0794961,140.79,140.69,100.0]
[1720447036354,15.1439,140.76,140.7,1.4174392]
[1720447036530,20.0,140.75,140.71,100.0]
[1720447036842,20.0,140.75,140.72,1.41723774]
[1720447037449,20.0,140.75,140.73,0.17]
[1720447037644,20.0,140.75,140.73,101.76083103]
[1720447037849,20.0,140.77,140.74,0.17]
[1720447038053,1.0794961,140.79,140.76,0.17]
[1720447038366,1.0794961,140.79,140.76,0.51]
[1720447039351,1.0794961,140.79,140.78,0.17]
[1720447039533,1.0794961,140.79,140.78,0.51]
[1720447040161,0.8994961,140.79,140.78,29.0932]
[1720447040463,6.37005855,140.82,140.81,100.0]
[1720447040636,0.24222485,140.89,140.87,100.0]
[1720447040843,0.24222485,140.89,140.88,0.34]
[1720447041448,0.24222485,140.89,140.88,1.75803879]
[1720447041983,0.24222485,140.89,140.84,100.0]
[1720447042152,0.24222485,140.89,140.85,0.34]
[1720447042356,0.24222485,140.89,140.87,100.17]
[1720447042547,0.24222485,140.89,140.88,0.17]
[1720447042874,0.24222485,140.89,140.88,21.99]
[1720447043457,0.24222485,140.89,140.88,22.57113856]
[1720447044346,0.24222485,140.89,140.88,21.99]
[1720447044547,0.24222485,140.89,140.87,100.0]
[1720447044779,0.24222485,140.89,140.88,21.48]
[1720447044952,0.24222485,140.89,140.87,100.0]
[1720447045463,0.24222485,140.89,140.87,121.48]
[1720447045861,0.24222485,140.89,140.88,0.51]
[1720447046068,0.24222485,140.89,140.88,129.0882]
[1720447046373,0.24222485,140.89,140.88,121.99]
[1720447046541,0.24222485,140.89,140.88,21.99]
[1720447047543,0.24222485,140.89,140.88,121.99]
[1720447048672,0.24222485,140.89,140.88,21.99]
[1720447048873,0.24222485,140.89,140.88,21.48]
[1720447049575,0.24222485,140.89,140.87,100.0]
[1720447049761,0.24222485,140.89,140.85,100.0]
[1720447050356,0.24222485,140.89,140.87,100.0]
[1720447050770,0.24222485,140.89,140.87,121.48]
[1720447050956,0.24222485,140.89,140.88,0.17]
[1720447051564,0.24222485,140.89,140.8,100.0]
[1720447051760,0.24222485,140.89,140.85,100.0]
[1720447051973,0.24222485,140.89,140.83,100.0]
[1720447052161,35.93052485,140.89,140.8,100.0]
[1720447052359,7.0986,140.88,140.8,100.0]
[1720447052558,20.0,140.87,140.78,100.0]
[1720447052878,45.7193,140.86,140.77,100.0]
[1720447053092,20.0,140.85,140.77,100.0]
[1720447053286,20.0,140.85,140.79,100.0]
[1720447053594,20.0,140.85,140.77,100.0]
[1720447054093,20.0,140.85,140.76,100.0]
[1720447054390,20.0,140.85,140.78,100.0]
[1720447054585,20.0,140.85,140.8,121.48]
[1720447054761,20.0,140.88,140.8,100.0]
[1720447054963,20.0,140.88,140.78,100.0]
[1720447055375,20.0,140.88,140.79,0.34]
[1720447056180,27.0983,140.88,140.79,0.34]
[1720447056380,7.0989,140.87,140.79,0.34]
[1720447056569,20.0,140.86,140.79,0.34]
[1720447056765,7.0997,140.85,140.76,100.0]
[1720447056972,20.0,140.84,140.74,100.0]
[1720447057284,20.0,140.84,140.75,1.41719584]
[1720447057458,20.0,140.84,140.75,122.89719584]
[1720447058069,20.0,140.84,140.77,100.0]
[1720447058263,20.0,140.84,140.78,1.41689383]
[1720447058574,20.0,140.84,140.79,0.17]
[1720447058969,27.1003,140.84,140.74,121.48]
[1720447059172,27.1003,140.84,140.72,107.43091755]
[1720447059383,23.1942,140.82,140.72,107.43091755]
[1720447059601,20.0,140.81,140.72,107.43091755]
[1720447059968,20.0,140.81,140.73,51.48]
[1720447061286,20.0,140.81,140.74,121.48]
[1720447061592,7.1027,140.79,140.73,30.0]
[1720447061771,20.0,140.78,140.7,100.0]
[1720447062162,20.0,140.79,140.7,100.0]
[1720447062361,20.0,140.8,140.72,100.0]
[1720447062594,20.0,140.8,140.72,121.48]
[1720447062895,20.0,140.81,140.74,121.48]
[1720447063392,20.0,140.81,140.75,0.34]
[1720447063562,20.0,140.81,140.77,0.17]
[1720447063762,16.0926,140.82,140.77,0.34]
[1720447065169,20.0,140.81,140.79,0.17]
[1720447065375,16.0926,140.82,140.79,1.33734871]
[1720447065762,6.1194,140.83,140.79,1.33734871]
[1720447065966,15.8294,140.86,140.8,121.48]
[1720447066174,15.8294,140.86,140.81,129.9200478]
[1720447066373,15.8294,140.86,140.82,0.17]
[1720447066591,15.8294,140.86,140.83,0.17]
[1720447066793,15.8294,140.86,140.8,0.17]
[1720447066971,15.8294,140.86,140.8,0.51]
[1720447067595,15.8294,140.86,140.76,100.0]
[1720447067596,20.0,140.85,140.76,100.0]
[1720447067899,20.0,140.85,140.79,0.17]
[1720447068192,20.0,140.85,140.79,1.057188]
[1720447068569,20.0,140.85,140.81,0.17]
[1720447068768,20.0,140.85,140.81,1.05711027]
[1720447068993,20.0,140.85,140.79,21.48]
[1720447069201,20.0,140.85,140.79,0.17]
[1720447070293,20.0,140.85,140.74,100.0]
[1720447070896,20.0,140.85,140.76,100.0]
[1720447071091,20.0,140.85,140.76,121.48]
[1720447071594,27.0998,140.85,140.77,0.51]
[1720447071973,7.1002,140.84,140.75,0.17]
[1720447072172,20.0,140.83,140.75,0.17]
[1720447072372,20.0,140.83,140.8,0.17]
[1720447072601,54.4494,140.86,140.8,1.58834548]
[1720447073614,15.8294,140.86,140.78,0.51]
[1720447073797,20.0,140.85,140.78,100.51]
[1720447073978,20.0,140.85,140.8,100.0]
[1720447074174,15.8294,140.86,140.81,0.75241969]
[1720447074801,15.8294,140.86,140.83,100.0]
[1720447075105,38.86222485,140.89,140.84,1.27948853]
[1720447075274,0.24222485,140.89,140.86,0.17]
[1720447076403,0.24222485,140.89,140.88,0.17]
[1720447076601,0.24222485,140.89,140.88,0.34]
[1720447076772,0.24222485,140.89,140.86,21.48]
[1720447076972,0.24222485,140.89,140.87,0.17]
[1720447077191,0.24222485,140.89,140.87,100.17]
[1720447077404,0.24222485,140.89,140.87,101.27448744]
[1720447078118,0.24222485,140.89,140.87,122.75448744]
[1720447078302,0.24222485,140.89,140.88,0.34]
[1720447078483,0.24222485,140.89,140.88,7.6082]
[1720447078808,0.24222485,140.89,140.88,21.99]
[1720447080375,0.24222485,140.89,140.88,21.48]
[1720447080612,0.24222485,140.89,140.83,100.0]
[1720447080979,20.24222485,140.89,140.86,100.0]
[1720447081301,20.24222485,140.89,140.84,100.0]
[1720447081500,20.24222485,140.89,140.82,100.0]
[1720447081876,20.24222485,140.89,140.78,100.0]
[1720447081877,7.0988,140.87,140.78,100.0]
[1720447082107,6.459,140.88,140.75,16.0536]
[1720447082108,20.0,140.86,140.8,100.0]
[1720447082774,20.0,140.86,140.74,6.0089]
[1720447082775,20.0,140.87,140.78,100.0]
[1720447082980,7.1003,140.84,140.76,100.0]
[1720447083207,27.1008,140.83,140.73,100.0]
[1720447083417,15.2895,140.82,140.74,1.11588749]
[1720447083612,20.0,140.81,140.75,21.48]
[1720447083794,20.0,140.81,140.76,101.11572893]
[1720447084109,20.0,140.81,140.77,1.11564967]
[1720447084612,20.0,140.81,140.72,121.48]
[1720447084806,6.5439,140.8,140.71,1.41414584]
[1720447085016,38.62,140.77,140.71,1.41414584]
[1720447085312,20.0,140.76,140.71,1.41414584]
[1720447085680,20.0,140.76,140.69,121.48]
[1720447085885,20.0,140.76,140.63,100.0]
[1720447085886,20.0,140.76,140.71,100.0]
[1720447086090,20.0,140.76,140.72,1.4141102]
[1720447089015,20.0,140.76,140.71,121.48]
[1720447089301,27.1028,140.79,140.69,100.0]
[1720447089508,20.0,140.79,140.72,0.17]
[1720447089684,20.0,140.79,140.73,121.48]
[1720447089880,6.3739,140.8,140.74,0.34]
[1720447090585,6.3739,140.8,140.74,0.17]
[1720447091007,13.4763,140.8,140.73,0.51]
[1720447091208,20.0,140.79,140.71,121.48]
[1720447091399,20.0,140.79,140.72,0.34]
[1720447091810,20.0,140.79,140.74,0.17]
[1720447092819,20.0,140.79,140.7,121.48]
[1720447093312,20.0,140.79,140.71,21.48]
[1720447093522,27.1028,140.79,140.7,100.0]
[1720447093686,20.0,140.79,140.66,100.0]
[1720447093887,46.78,140.75,140.66,121.48]
[1720447094102,27.1053,140.74,140.66,21.48]
[1720447094319,20.0,140.74,140.65,21.48]
[1720447094623,6.2706,140.73,140.62,100.0]
[1720447094921,27.1067,140.72,140.63,21.48]
[1720447095089,46.78,140.71,140.63,21.48]
[1720447095411,20.0,140.7,140.64,100.0]
[1720447095618,20.0,140.7,140.62,107.43892362]
[1720447095801,20.0,140.71,140.67,100.0]
[1720447096003,20.0,140.72,140.67,100.0]
[1720447096207,20.0,140.72,140.67,121.48]
[1720447096821,20.0,140.72,140.68,0.34]
[1720447097316,6.2706,140.73,140.7,0.17]
[1720447097499,6.2706,140.76,140.7,0.51]
[1720447098322,6.2706,140.76,140.68,0.17]
[1720447098511,6.2706,140.76,140.62,107.43821809]
[1720447098821,46.78,140.72,140.62,100.0]
[1720447099122,20.0,140.71,140.63,1.42129004]
[1720447099712,46.78,140.74,140.66,100.0]
[1720447099927,20.0,140.73,140.67,1.42124507]
[1720447100295,20.0,140.73,140.63,122.90124507]
[1720447100497,7.1063,140.72,140.63,122.90124507]
[1720447100799,20.0,140.71,140.64,0.51]
[1720447101003,20.0,140.71,140.65,1.42104297]
[1720447101198,20.0,140.73,140.66,0.17]
[1720447101397,20.0,140.73,140.66,1.59084093]
[1720447101598,27.1059,140.73,140.66,1.59084093]
[1720447101796,20.0,140.73,140.66,1.59084093]
[1720447102926,20.0,140.73,140.65,1.42084093]
[1720447103220,22.37,140.72,140.62,121.48]
[1720447103397,20.0,140.71,140.64,100.0]
[1720447103603,20.0,140.71,140.62,121.48]
[1720447104006,20.0,140.71,140.64,100.0]
[1720447104205,20.0,140.71,140.66,121.48]
[1720447104412,22.37,140.72,140.67,0.51]
[1720447105713,20.0,140.71,140.66,0.17]
[1720447106129,20.0,140.71,140.65,0.34]
[1720447106492,20.0,140.71,140.62,100.0]
[1720447106701,53.8873,140.7,140.6,100.0]
[1720447106919,20.0,140.69,140.58,100.0]
[1720447107229,20.0,140.69,140.64,100.0]
[1720447107695,20.0,140.69,140.64,121.48]
[1720447107902,20.0,140.69,140.66,100.0]
[1720447108313,20.0,140.71,140.67,0.34]
[1720447108516,20.0,140.71,140.67,0.17]
[1720447108922,22.37,140.72,140.67,121.65]
[1720447109129,22.37,140.72,140.68,0.17]
[1720447109332,22.37,140.72,140.69,0.17]
[1720447110017,22.37,140.72,140.68,0.34]
[1720447110496,20.0,140.71,140.68,0.34]
[1720447111222,20.0,140.71,140.63,100.0]
[1720447111530,20.0,140.71,140.64,0.51]
[1720447112212,20.0,140.71,140.64,21.99]
[1720447112418,20.0,140.71,140.63,100.0]
[1720447112616,20.0,140.71,140.61,100.0]
[1720447113227,20.0,140.71,140.63,121.48]
[1720447113922,20.0,140.71,140.64,0.17]
[1720447114533,20.0,140.71,140.65,0.17]
[1720447114820,20.0,140.71,140.64,0.34]
[1720447115022,20.0,140.71,140.64,1.76169573]
[1720447115420,20.0,140.71,140.65,0.17]
[1720447115626,20.0,140.71,140.65,1.59159464]
[1720447115928,20.0,140.71,140.65,1.42159464]
[1720447116226,20.0,140.71,140.65,100.0]
[1720447117517,20.0,140.71,140.66,0.17]
[1720447117929,20.0,140.71,140.66,0.34]
[1720447118315,22.37,140.72,140.66,0.34]
[1720447119011,22.37,140.72,140.67,100.0]
[1720447119237,22.37,140.72,140.66,0.51]
[1720447120419,20.0,140.71,140.66,0.51]
[1720447120626,20.0,140.71,140.68,100.0]
[1720447120831,20.0,140.71,140.69,0.17]
[1720447121232,20.0,140.71,140.67,0.17]
[1720447121414,20.0,140.71,140.67,0.51]
[1720447123919,20.0,140.71,140.66,100.0]
[1720447124609,20.0,140.71,140.67,0.17]
[1720447125014,20.0,140.71,140.66,0.17]
[1720447125227,20.0,140.71,140.66,0.51]
[1720447126742,20.0,140.71,140.67,0.40386509]
[1720447127041,20.0,140.71,140.67,1.42149752]
[1720447127417,20.0,140.71,140.67,100.0]
[1720447127619,20.0,140.71,140.68,0.17]
[1720447128427,20.0,140.71,140.68,0.51]
[1720447130247,20.0,140.71,140.67,0.17]
[1720447130552,20.0,140.71,140.69,0.17]
[1720447131146,20.0,140.71,140.68,0.17]
[1720447131835,20.0,140.71,140.68,100.17]
[1720447132433,22.37,140.72,140.69,0.17]
[1720447132732,21.8977,140.76,140.72,0.17]
[1720447132922,21.8977,140.76,140.72,0.51]
[1720447133746,21.8977,140.76,140.74,0.17]
[1720447133928,21.8977,140.76,140.74,0.34]
[1720447134426,21.8977,140.76,140.74,100.34]
[1720447134635,6.49657348,140.8,140.74,100.34]
[1720447134636,29.10127348,140.8,140.74,100.34]
[1720447134833,22.6047,140.8,140.75,1.33714225]
[1720447135057,22.6047,140.8,140.76,100.34]
[1720447135227,22.6047,140.8,140.77,1.33695256]
[1720447136137,6.6609,140.83,140.78,100.17]
[1720447136332,6.6609,140.83,140.8,100.17]
[1720447136541,28.20270297,140.88,140.85,0.17]
[1720447136750,21.782,140.88,140.85,0.51]
[1720447137061,0.24222485,140.89,140.87,0.17]
[1720447137354,0.24222485,140.89,140.86,0.17]
[1720447137540,0.24222485,140.89,140.86,100.34]
[1720447137745,0.24222485,140.89,140.86,100.74325714]
[1720447138352,0.24222485,140.89,140.86,0.74325714]
[1720447138555,0.24222485,140.89,140.86,0.40325714]
[1720447138846,0.24222485,140.89,140.85,0.17]
[1720447139145,0.24222485,140.89,140.84,100.0]
[1720447139352,0.24222485,140.89,140.85,0.51]
[1720447139645,0.24222485,140.89,140.87,0.17]
[1720447139951,0.24222485,140.89,140.87,0.51]
[1720447140250,0.24222485,140.89,140.83,100.0]
[1720447140251,0.24222485,140.89,140.84,100.0]
[1720447140425,0.24222485,140.89,140.86,0.17]
[1720447141051,0.24222485,140.89,140.84,100.0]
[1720447141227,0.24222485,140.89,140.82,100.0]
[1720447141428,0.24222485,140.89,140.84,100.0]
[1720447141645,0.24222485,140.89,140.84,121.48]
[1720447142149,0.24222485,140.89,140.86,100.0]
[1720447142534,0.24222485,140.89,140.87,0.17]
[1720447142758,0.24222485,140.89,140.87,0.53530064]
[1720447143346,0.24222485,140.89,140.88,100.34]
[1720447143553,0.24222485,140.89,140.88,100.51]
[1720447143952,0.24222485,140.89,140.88,121.99]
[1720447144268,0.24222485,140.89,140.88,122.35528683]
[1720447144875,0.24222485,140.89,140.88,100.87528683]
[1720447145176,0.24222485,140.89,140.88,100.51]
[1720447145369,0.24222485,140.89,140.88,121.99]
[1720447145569,0.24222485,140.89,140.87,0.17]
[1720447145747,0.24222485,140.89,140.85,0.37046548]
[1720447145748,0.24222485,140.89,140.85,0.17]
[1720447145955,0.24222485,140.89,140.88,100.17]
[1720447146173,0.24222485,140.89,140.88,100.34]
[1720447146377,0.24222485,140.89,140.88,128.9182]
[1720447146675,0.24222485,140.89,140.88,228.9182]
[1720447147089,0.24222485,140.89,140.88,235.1534]
[1720447150871,0.8794961,140.93,140.92,221.65]
[1720447151063,0.8794961,140.93,140.92,228.7462]
[1720447151978,0.8794961,140.93,140.92,221.65]
[1720447152163,0.2,140.99,140.98,121.65]
[1720447152960,0.2,140.99,140.98,121.82]
[1720447153471,0.2,140.99,140.98,121.99]
[1720447155058,0.2,140.99,140.98,604.934333]
[1720447156763,0.2,140.99,140.98,583.454333]
[1720447157153,0.2,140.99,140.98,583.114333]
[1720447157362,0.2,140.99,140.98,482.944333]
[1720447159174,22.3049,140.99,140.98,466.277733]
[1720447159379,22.3049,140.99,140.98,421.86582438]
[1720447159579,42.3049,140.99,140.98,421.86582438]
[1720447159801,42.3049,140.99,140.98,408.59689412]
[1720447159962,33.3551,140.99,140.98,64.97829412]
[1720447160163,31.8939,140.99,140.98,64.97829412]
[1720447161096,20.2,140.99,140.98,94.97829412]
[1720447161802,20.2,140.99,140.98,64.97829412]
[1720447162782,20.2,140.99,140.98,94.97829412]
[1720447163089,20.2,140.99,140.98,64.97829412]
[1720447163669,20.2,140.99,140.98,56.52829412]
[1720447164895,20.2,140.99,140.98,50.35506713]
[1720447166199,20.2,140.99,140.98,43.37077472]
[1720447166369,20.2,140.99,140.98,41.23877472]
[1720447166988,20.2,140.99,140.98,36.97477472]
[1720447167582,20.2,140.99,140.98,11.8919389]
[1720447167785,7.0932,140.98,140.89,100.0]
[1720447168099,7.0932,140.98,140.86,21.7664]
[1720447168100,7.0942,140.96,140.87,100.0]
[1720447168390,26.0927,140.95,140.87,100.0]
[1720447168689,26.0927,140.95,140.87,121.48]